Cogmind - Beta 11.1 @@@ ROGUE MODE // 2022.06.04 @ 16:51:06 Player: Decinym Result: Destroyed by DAS Turret with DAS Cannon Performance ------------- Evolutions (0) 0 Regions Visited (3) 600 Robots Destroyed (24) 120 Value Destroyed (383) 383 Prototype IDs (25) 500 Alien Tech Used (0) 0 Bonus (400) 400 TOTAL SCORE: 2003 Bonus ------- Follower Combat Kills 116 Aligned with FarCom 300 Friendly Fire -16 Cogmind --------- Core Integrity 0/250 Matter 193/300 Energy 96/100 System Corruption 0% Temperature Cool (0) Movement Walking (120) Location -10/Exiles Parts ------- > --- POWER (1) -------- (None) > --- PROPULSION (2) --- Advanced Myomer Leg > --- UTILITY (2) ------ Improved Heat Sink Small Storage Unit > --- WEAPON (2) ------- Heavy Assault Rifle 8R-AWN's Boregun > --- INVENTORY (8) ---- Medium Matter Pod (100) Large Matter Pod (150) High-capacity Matter Pod (200) Beamcaster Peak State ------------ > --- POWER ------------ (None) > --- PROPULSION ------- Advanced Myomer Leg > --- UTILITY ---------- Improved Heat Sink Small Storage Unit > --- WEAPON ----------- Heavy Assault Rifle 8R-AWN's Boregun > --- INVENTORY -------- Medium Matter Pod Large Matter Pod High-capacity Matter Pod Beamcaster [Rating: 24] Favorites ----------- Power Improved Ion Engine Engine Improved Ion Engine Propulsion Light Treads Treads Light Treads Leg Aluminum Leg Utility Small Storage Unit Device Improved Heat Sink Storage Small Storage Unit Protection Light Armor Plating Weapon Heavy Assault Rifle Energy Gun Beamcaster Ballistic Gun Heavy Assault Rifle Build | -11 -10 -10 -10 ------- Run | Scr Mat Min Exi Slots Evolved . | . . . . Power . | . . . . Propulsion . | . . . . Utility . | . . . . Weapon . | . . . . Parts Attached 17 | . 5 8 4 Power 4 | . 1 3 . Engine 4 | . 1 3 . Core . | . . . . Reactor . | . . . . Propulsion 4 | . 1 2 1 Treads 2 | . . 2 . Leg 2 | . 1 . 1 Wheel . | . . . . Hover . | . . . . Flight . | . . . . Utility 2 | . 1 1 . Device 1 | . . 1 . Storage . | . . . . Processor . | . . . . Hackware . | . . . . Protection 1 | . 1 . . Artifact . | . . . . Weapon 7 | . 2 2 3 Energy Gun 1 | . . 1 . Energy Cannon . | . . . . Ballistic Gun 6 | . 2 1 3 Ballistic Cannon . | . . . . Launcher . | . . . . Special Weapon . | . . . . Impact Weapon . | . . . . Slashing Weapon . | . . . . Piercing Weapon . | . . . . Special Melee Weapon . | . . . . Unidentified Prototypes 2 | . . . 2 Parts Lost 9 | . . 5 4 Power 3 | . . 2 1 Propulsion 3 | . . 1 2 Utility 1 | . . 1 . Weapon 2 | . . 1 1 Highest Loss Streak 5 | . . 5 4 To Critical Strikes 4 | . . . 4 Average Slot Usage (%) 97 | . 95 98 96 Engine 13 | . 14 13 12 Treads 19 | . . 18 25 Leg 7 | . 28 9 . Device 10 | . . 9 14 Storage 14 | . 14 14 14 Protection 2 | . 10 4 . Energy Gun 9 | . 2 9 12 Ballistic Gun 18 | . 25 18 15 Naked Turns . | . . . . Heaviest Build 21 | 12 20 21 21 Greatest Support 40 | 20 20 40 40 Greatest Overweight (x) 3 | . . . 3 Average Overweight (x) . | . . . . Largest Inventory Capacity 8 | 8 8 8 8 Average Capacity 8 | 8 8 8 8 Most Carried 8 | 5 8 8 8 Average Carried 5 | 5 7 5 5 Final Capacity 8 | 8 8 8 8 Final Carried 8 | 4 8 6 4 Class Distribution -------------------- 100% | Mutant Dominant Class ---------------- Mutant | -10/Materials Mutant | -10/Mines Mutant | -10/Exiles Resources | -11 -10 -10 -10 ----------- Run | Scr Mat Min Exi Matter Collected 937 | 200 325 301 111 Remotely . | . . . . Salvage Created 640 | . 206 355 79 Parts 50 | . 18 30 2 Haulers Intercepted . | . . . . Recyclers Shooed . | . . . . Parts Field Recycled . | . . . . Retrieved Matter . | . . . . Parts Self-Destructed . | . . . . Prevented . | . . . . Kills | -11 -10 -10 -10 ------- Run | Scr Mat Min Exi Combat Hostiles Destroyed 25 | . 8 16 1 Guns 25 | . 8 16 1 Classes Destroyed 5 | . 3 2 . Worker 2 | . 1 1 . Tunneler 1 | . . 1 . Swarmer 15 | . 6 9 . Grunt 5 | . 2 3 . Assembled 4 | . . 4 . Best Kill Streak 6 | . 6 3 1 Combat Bots Only 5 | . 5 3 1 Max Kills in Single Turn 2 | . 1 2 1 Gunslinging 1 | . . 1 . Exploded . | . . . . Melee . | . . . . Uniques/NPCs Destroyed 1 | . . . 1 8R-AWN (-10/Exiles) Combat | -11 -10 -10 -10 -------- Run | Scr Mat Min Exi Damage Taken 1822 | . 182 834 806 Core 308 | . 9 45 254 Absorbed by Shields . | . . . . Core Remaining (%) 100 | 100 . . . Volleys Fired 100 | . 15 47 38 Largest 2 | . 2 2 2 Hottest 98 | . 70 98 75 Shots Fired 186 | . 30 94 62 Gun 186 | . 30 94 62 Cannon . | . . . . Launcher . | . . . . Special . | . . . . Kinetic 168 | . 27 80 61 Thermal 18 | . 3 14 1 Explosive . | . . . . Electromagnetic . | . . . . Robot Hit Streak 7 | . 7 6 7 Robot Miss Streak 5 | . 4 5 2 Penetration Max . | . . . . Secondary Targets 3 | . . 3 . Max Gunslinging Chain 1 | . . 1 . Shots Hit Robots 105 | . 14 52 39 Core Hits 48 | . 10 29 9 Critical Kills 1 | . 1 . . Critical Parts Destroyed . | . . . . Critical Strikes 4 | . 1 2 1 Burn 2 | . . 2 . Destroy 2 | . 1 . 1 Melee Attacks . | . . . . Impact . | . . . . Slashing . | . . . . Piercing . | . . . . Sneak Attacks . | . . . . Combat Hostiles . | . . . . Follow-up Attacks . | . . . . Damage Inflicted 1671 | . 227 864 580 Guns 1658 | . 214 864 580 Cannons . | . . . . Explosions . | . . . . Melee . | . . . . Ramming 13 | . 13 . . Kinetic 1440 | . 189 671 580 Thermal 218 | . 25 193 . Explosive . | . . . . Electromagnetic . | . . . . Impact . | . . . . Slashing . | . . . . Piercing . | . . . . Highest Corruption . | . . . . Average Corruption . | . . . . Corruption Purged . | . . . . Corruption Blocked . | . . . . Overload Shots . | . . . . Overflow Damage . | . . . . Projectiles . | . . . . Explosions . | . . . . Melee . | . . . . Knockbacks . | . . . . Impact . | . . . . Kinetic . | . . . . Secondary . | . . . . Self-Inflicted Damage . | . . . . Shots . | . . . . Rammed . | . . . . Targets Rammed 1 | . 1 . . Kicked 1 | . 1 . . Crushed . | . . . . Highest Temperature 42 | . 27 42 8 Average Temperature 15 | . 12 16 6 Received Heat Transfer 141 | . 21 120 . Siege Activations . | . . . . Robots Corrupted . | . . . . Combat Hostiles . | . . . . Parts Fried . | . . . . Impact Corruptions . | . . . . Robots Melted . | . . . . Combat Hostiles . | . . . . Parts Melted . | . . . . Heat Transferred 555 | . 74 481 . Parts Sabotaged . | . . . . Parts Stolen . | . . . . Parts Stripped . | . . . . Power Chain Reactions . | . . . . Missiles Intercepted . | . . . . Alert | -11 -10 -10 -10 ------- Run | Scr Mat Min Exi Peak Influence 392 | . 221 392 . Initial 85 | . . 85 . Average 210 | . 106 236 . Maximum Alert Level 1 | . 1 1 . Low Security (%) 29 | 100 76 18 . Level 1 70 | . 23 81 . Level 2 . | . . . . Level 3 . | . . . . Level 4 . | . . . . Level 5 . | . . . . High Security . | . . . . Max Security . | . . . . Squads Dispatched 1 | . 1 . . Investigation 1 | . 1 . . Extermination . | . . . . Reinforcement . | . . . . Assault . | . . . . Garrison . | . . . . Intercept . | . . . . Searches Triggered . | . . . . Construction Impeded . | . . . . Haulers Reinforced . | . . . . Active Scanning Responses . | . . . . Cargo Convoy Interrupts . | . . . . Stealth | -11 -10 -10 -10 --------- Run | Scr Mat Min Exi Distress Signals . | . . . . Communications Jammed . | . . . . Distress Signals . | . . . . Times Spotted 54 | . 14 27 13 Peak Tracking Total 9 | . 7 4 9 Tactical Retreats 5 | . 1 2 2 Traps | -11 -10 -10 -10 ------- Run | Scr Mat Min Exi Traps Triggered 1 | . 1 . . Indirectly . | . . . . Trap Hack Attempts . | . . . . Triggered . | . . . . Disarmed . | . . . . Reprogrammed . | . . . . Reused . | . . . . Traps Extracted . | . . . . Installed . | . . . . Triggered . | . . . . Exploded 3 | . . . 3 Machines | -11 -10 -10 -10 ---------- Run | Scr Mat Min Exi Machines Disabled 7 | . . 4 3 Max in Single Turn 1 | . . 1 1 Machines Sabotaged . | . . . . Garrisons Compromised . | . . . . Overloaded Fab Kills . | . . . . Hacking | -11 -10 -10 -10 --------- Run | Scr Mat Min Exi Machines Accessed 4 | . 1 1 2 Terminals 2 | . 1 1 . Fabricators . | . . . . Repair Stations . | . . . . Recycling Units . | . . . . Scanalyzers . | . . . . Garrison Access . | . . . . Total Hacks 5 | . 1 2 2 Successful 4 | . 1 1 2 Failed 1 | . . 1 . Catastrophic 1 | . . 1 . Database Lockouts . | . . . . Manual 4 | . 1 2 1 Terminals 3 | . 1 2 . Fabricators . | . . . . Repair Stations . | . . . . Recycling Units . | . . . . Scanalyzers . | . . . . Garrison Access . | . . . . Terminal Hacks 4 | . 1 1 2 Record 1 | . . . 1 Branch Access Points 1 | . 1 . . Alert Level 1 | . . 1 . EX-Prototype ID Bank 1 | . . . 1 Fabricator Hacks . | . . . . Repair Station Hacks . | . . . . Recycling Unit Hacks . | . . . . Scanalyzer . | . . . . Garrison Access Hacks . | . . . . Unauthorized Hacks . | . . . . Terminals . | . . . . Fabricators . | . . . . Repair Stations . | . . . . Recycling Units . | . . . . Scanalyzers . | . . . . Garrison Access . | . . . . Data Cores Recovered . | . . . . Used . | . . . . Hacking Detections 1 | . . 1 . Full Trace Events . | . . . . Feedback Events . | . . . . Feedback Blocked . | . . . . Robot Schematics Acquired . | . . . . Robots Built . | . . . . Authchips . | . . . . Time . | . . . . Total Robot Build Rating . | . . . . Part Schematics Acquired . | . . . . Parts Built . | . . . . Authchips . | . . . . Time . | . . . . Total Part Build Rating . | . . . . Parts Repaired . | . . . . Time . | . . . . Parts Recycled . | . . . . Recycled Matter . | . . . . Retrieved Matter . | . . . . Retrieved Components . | . . . . Parts Scanalyzed . | . . . . Part Schematics Acquired . | . . . . Parts Damaged . | . . . . Bothacking | -11 -10 -10 -10 ------------ Run | Scr Mat Min Exi Used RIF Installer . | . . . . Robots Hacked . | . . . . Non-combat . | . . . . Combat . | . . . . Robot Hacks Applied . | . . . . Relay Couplers Released . | . . . . Fabnet Peak Effective % . | . . . . Robots Rewired . | . . . . Allies Hacked . | . . . . Hacks Repelled . | . . . . Allies | -11 -10 -10 -10 -------- Run | Scr Mat Min Exi Total Allies 4 | . . 4 . Largest Group 3 | . . 3 3 Highest-Rated Group 40 | . . 40 40 Highest-Rated Ally 31 | . . 31 16 Total Orders 3 | . . . 3 STAY 3 | . . . 3 Ally Attacks 49 | . . 33 16 Total Damage 911 | . . 417 494 Kills 11 | . . 8 3 Allies Corrupted . | . . . . Allies Melted . | . . . . Turrets Deployed 3 | . . . 3 Intel | -11 -10 -10 -10 ------- Run | Scr Mat Min Exi Robot Analysis Total . | . . . . Derelict Logs Recovered 1 | . . 1 . Drone Launches . | . . . . Drone Recoveries . | . . . . Exploration | -11 -10 -10 -10 ------------- Run | Scr Mat Min Exi Turns Passed 2527 | 1 260 1078 1188 Spaces Moved 1440 | 1 161 632 646 Core 4 | . . . 4 Treads 1017 | . . 409 608 Legs 419 | 1 161 223 34 Wheels . | . . . . Hover . | . . . . Flight . | . . . . Fastest Speed 120 | 120 120 120 120 Average Speed 148 | 120 120 145 158 Slowest Speed 200 | 120 120 160 200 Overloaded Moves . | . . . . Propulsion Burnouts . | . . . . Robots Hopped . | . . . . Cave-ins Triggered . | . . . . Exploration Rate (%) 51 | 2 33 97 74 Regions Visited 3 Branch Regions 2 Pre-discovered Areas 1 | . . . 1 Known Exits Taken 1 | . 1 . . Unknown Exits Taken 2 | 1 . 1 . Scrap Searched 1 | . . 1 . Spaces Dug . | . . . . Terrain Destroyed . | . . . . Melee . | . . . . Projectile . | . . . . AOE . | . . . . Terrain Rammed . | . . . . Walls Destroyed . | . . . . Machines Disabled . | . . . . Actions | -11 -10 -10 -10 --------- Run | Scr Mat Min Exi Total 1648 | 2 198 694 754 Wait 60 | . 5 3 52 Move 1437 | . 160 631 646 Hop . | . . . . Pick Up 16 | . 7 3 6 Fast Attach 6 | . 1 3 2 Attach 7 | . 1 5 1 Detach . | . . . . Swap 4 | . 3 . 1 Drop 17 | 2 5 2 8 Fire 100 | . 15 47 38 Melee . | . . . . Ram . | . . . . Kick 1 | . 1 . . Crush . | . . . . Escape Stasis . | . . . . Rewire . | . . . . Trap . | . . . . Miscellaneous . | . . . . Route ------- -11/Scrapyard -10/Materials (discovered 3 exits: [*Mat] / *Min x2) -10/Mines (discovered 3 exits: [*Mat x2] / *Exi) -10/Exiles (discovered 1 exit: [*Min]) History --------- Turn | Location | Event 2 | -11/Scrapyard | Discovered new exit (range 0) 2 | -11/Scrapyard | Entered Materials 8 | -10/Materials | Identified exit to Mines 232 | -10/Materials | Discovered new exit (range 8) 262 | -10/Materials | Entered Mines 305 | -10/Mines | Build established: Mutant 396 | -10/Mines | Received a Mining Laser from a helpful Derelict 447 | -10/Mines | Learned 2 Materials zone layouts 546 | -10/Mines | Assembled infested the area 671 | -10/Mines | Lost 5 parts (2p1n1u1w) 905 | -10/Mines | Discovered new exit (range 10) 1016 | -10/Mines | Discovered new exit (range 15) 1036 | -10/Mines | Assisted by bots powering up and referring to "LRC-V3" 1332 | -10/Mines | Deemed a non-threat by the Exiles lab entrance 1334 | -10/Mines | Discovered new exit (range 5) 1340 | -10/Mines | Entered Exiles 1340 | -10/Exiles | Accompanied by 3 allies 1364 | -10/Exiles | Discovered new exit (range 15) 1380 | -10/Exiles | Met 8R-AWN 1403 | -10/Exiles | Met EX-HEX 1459 | -10/Exiles | Met EX-BIN 1478 | -10/Exiles | Aligned with FarCom system 1480 | -10/Exiles | Given EX-Vault access code 1523 | -10/Exiles | Opened EX-Vault 1536 | -10/Exiles | Found Deploy-a-Sentry 1538 | -10/Exiles | Found Deploy-a-Sentry 1541 | -10/Exiles | Found Deploy-a-Sentry 1571 | -10/Exiles | Warned to stay clear of 0b10 Research branches 1622 | -10/Exiles | Met EX-DEC 1680 | -10/Exiles | DAS Turret deployed 1682 | -10/Exiles | DAS Turret deployed 1684 | -10/Exiles | DAS Turret deployed 1863 | -10/Exiles | Visited The Gauntlet 1950 | -10/Exiles | Learned location of Zion (-6) 2296 | -10/Exiles | Attacked by the Exiles 2410 | -10/Exiles | Core integrity fell below 50% 2443 | -10/Exiles | Core integrity fell below 20% 2460 | -10/Exiles | Lost 4 parts (1p2n1w) 2464 | -10/Exiles | Destroyed 8R-AWN 2479 | -10/Exiles | Found Prototype Ballistic Gun 2479 | -10/Exiles | Identified 8R-AWN's Boregun 2528 | -10/Exiles | Destroyed by DAS Turret with DAS Cannon Last Messages --------------- 02446_ HV Slug penetrates Wall. 02450_ Penetrated by HV Slug. 02455_ Destroyed Prototype Protection. 02456_ Penetrated by HV Slug. 02459_ HV Slug penetrates Wall. 02463_ Penetrated by HV Slug. 02463_ HV Slug penetrates Wall. 02464_ Wall collapses. 02464_ 8R-AWN destroyed. 02475_ Acquired Prototype Leg. 02475_ Identified Adv. Myomer Leg. 02478_ Dropped Hvy. Assault Rifle. 02479_ Acquired Prototype Ballistic Gun. 02479_ Identified 8R-AWN's Boregun. 02480_ Acquired 10 matter. 02481_ Acquired 79 matter. 02482_ Acquired 18 matter. 02497_ Acquired 4 matter. 02520_ HV Slug penetrates Machine. 02528_ HV Slug penetrates Wall. Map ----- +----------------------------------------------------+ | ???????????????? ??????????????????????#####??# | | ???????????????? ??????????????????????""""""?# | | ???????????????? ??????????????????????"""" ## | | ???????????????? ?????????????????????#""X" | | ???????????????? ?????????????????????#" | | ???????????????? ?????????????????????#" ## | | ???????????????? ?????????????????????#""""""?# | | ???????????????# ###??????????????????##"###??# | | ???????????##??# # #??????????????????? ??????# | | ???????????? ### # #??????????????????????????# | | ????????????? # #?????????????????????????## | | ?????????????#;#;;##?????????????????????????#" | | ######???????#!!! #?????????????????????????#" | | #""#??????# t #?????????????????????????#" | | ?????##% % "#?????????????????????????#" | | #????#; #????????????##???????????#" | | ##### #???????????? """????????#" | | ##" "#????????????" """????????## | | #"" ;##????????????" ?????????# | | ??# ##????????????"" ?????????#" | | ????## ##????????????"" "#????????#" | | ?????### [ "#####???????? ""?????????#" | | #######" %"" #?????????" "?????????##" | | !!""""" % ""#?????????# #????????##"" | | ! "### ;#####???### ###?######"" | | ! "#?##" %@#####X# #"###""""""" | | ! ##??#" % """""" " "" | | !""""""###???#"# % "" """ " | | #########?????#### % " " | | ?????????????????### | | ???????????????????### | | ?????????????????????#; | | ?????????????????????### | | ???????????????????????## | | ????????????????????????# " """""" | | ???????????????????????## ######" | | ???????????????????????#" ""##????## | | ??????????????????????##" " """##??????? | | ??????????????????????#"" """##???????? | | ??????????????????????#"" ""#????????? | | ??????????????????????#"" ###?####??? | | ??????????????????????#"" = ## #### | | ??????????????????????#"" %% """ | | ??????????????????????##"" % | | ???????????????????????#"""" % | | ???????????????????????## | | ????????????????????????#" " | | ????????????????????????#"""" ""## | | ????????????????????????#"" ""#### | | ????????????????????????#" """"##????? | +----------------------------------------------------+ Best States ------------- Heat Dissipation 39 Energy Generation 12 Energy Capacity 265 Matter Stores 300 Matter Capacity 300 Sight Range 16 Terrain Scan Density 10 Armor Coverage 150 Evasion (%) 55 Recoil Reduction 2 Item Schematics ----------------- None Robot Schematics ------------------ None Fabricated ------------ Nothing Alien Tech Used ----------------- None Achievements -------------- None Challenges ------------ None Game ------ Seed FissionAntigravScreen Manual? 0 Play Time 00:14:39 Cumulative 373.5 hours Start 2022.06.04 @ 16:40:09 End 2022.06.04 @ 16:51:06 Sessions 1 Manual Loads 0 Difficulty Rogue Special Mode None Game No. 399 Rogue 399 Adventurer 0 Explorer 0 Win Type - Total 29 Types 18/3/2/1/2/0/3/0/0 Lore% 90 Gallery% 90 Achievement% 80 Wizard Run 0 Options --------- ASCII 0 Keyboard 0 Movement Arrows Keybinds 0 Fullscreen 2 Font 18/SmallcapsGlow Map View 76x50 Tactical HUD 1 Map Filters NONE Filters NONE Steam 1 RUN: 9f43b0e9-e544-42c3-aaf5-c16e1600bb49